[Event "DLM Youth 2024"]
[Site "Tuebingen"]
[Date "2024.10.03"]
[Round "2"]
[White "Herrmann, Arthur"]
[Black "Moeller, Maurin"]
[Result "0-1"]
[ECO "B38"]
[WhiteElo "2031"]
[BlackElo "2118"]
[Annotator "NA RC"]
[PlyCount "82"]
[EventDate "2024.10.03"]
[EventType "team-swiss"]
[EventRounds "7"]
[EventCountry "GER"]
[SourceTitle "playchess.com"]
[Source "ChessBase"]
[SourceQuality "1"]
[TimeControl "40/5400+30:1800+30"]

1. e4 {[%emt 0:00:05]} c5 {[%emt 0:00:11]} 2. Nf3 {[%emt 0:00:11]} Nc6 {[%emt 0:00:23]} 3. d4 {[%emt 0:00:21]} cxd4 {[%emt 0:00:10]} 4. Nxd4 {[%emt 0:00:07]} g6 {[%emt 0:00:10]} 5. c4 {[%emt 0:02:17]} Bg7 {[%emt 0:00:09]} 6. Be3 {[%emt 0:00:55]} Nf6 {[%emt 0:00:09]} 7. Nc3 {[%emt 0:00:29]} O-O {[%emt 0:00:33]} 8. Be2 {[%emt 0:00:50]} d6 {[%emt 0:00:13]} 9. O-O {[%emt 0:00:47]} Bd7 {[%emt 0:00:33]} 10. Qd2 {[%emt 0:01:32]} Nxd4 {[%emt 0:00:43]} 11. Bxd4 {[%emt 0:00:09]} Bc6 {[%emt 0:00:39]} 12. f3 {[%emt 0:00:47]} Nd7 {[%emt 0:01:08]} 13. Be3 {[%emt 0:01:12]} a5 {[%emt 0:00:31]} 14. b3 {[%emt 0:04:12]} Nc5 {[%emt 0:03:33]} 15. Rfc1 {[%emt 0:04:55]} e6 {[%emt 0:06:04]} 16. Rab1 {[%emt 0:08:04]} Be5 {[%emt 0:01:40]} 17. Bd4 {[%emt 0:25:33]} Qe7 {[%emt 0:12:31]} 18. Rd1 {[%emt 0:05:33]} Rfd8 {[%emt 0:01:25]} 19. Qe3 {[%emt 0:08:32]} h5 {[%emt 0:11:07]} 20. Rd2 {[%emt 0:06:20]} b6 {[%emt 0:15:23]} 21. Rbd1 {[%emt 0:03:25]} Qf6 {[%emt 0:02:19]} 22. Bxe5 {[%emt 0:12:27]} dxe5 {[%emt 0:00:16]} 23. Rd6 {[%emt 0:02:29]} Rdc8 {[%emt 0:08:23]} 24. Nd5 {[%emt 0:03:49]} Bxd5 25. cxd5 {[%emt 0:00:35]} Rab8 {[%emt 0:01:06]} 26. dxe6 {[%emt 0:02:27]} Nxe6 {[%emt 0:08:26]} 27. Bc4 {[%emt 0:00:44]} Qf4 {[%emt 0:05:57]} 28. Qxf4 {[%emt 0:01:00]} Nxf4 {[%emt 0:00:13]} 29. Rd7 {[%emt 0:02:32]} Rf8 {[%emt 0:01:44]} 30. a4 {[%emt 0:01:36]} g5 {[%emt 0:02:44]} 31. Rc7 {[%emt 0:01:24]} Kg7 {[%emt 0:01:52]} 32. Rdd7 {[%emt 0:00:24]} Rbd8 {[%emt 0:01:59]} 33. Rxf7+ {[%emt 0:00:42]} Rxf7 {[%emt 0:00:08]} 34. Rxf7+ {[%emt 0:00:04]} Kg6 {[%emt 0:00:08]} 35. Rb7 {[%emt 0:00:55]} Rd1+ {[%emt 0:02:22]} 36. Bf1 {[%emt 0:00:32]} Rd6 {[%emt 0:01:45]} 37. Kf2 {[%emt 0:00:24]} g4 {[%emt 0:03:44]} 38. Ke3 {[%emt 0:00:30]} gxf3 {[%emt 0:01:21]} 39. Kxf3 {[%emt 0:00:37]} Nd3 {[%emt 0:03:21]} 40. Ke3 {[%emt 0:00:25]} Nc5 {[%emt 0:00:08]} 41. Bc4 {[%emt 0:00:53]} Nxb7 {[%emt 0:01:16]} 0-1

[Event "DLM Youth 2024"]
[Site "Tuebingen"]
[Date "2024.10.03"]
[Round "2"]
[White "Haubold, Sebastian"]
[Black "Weihrauch, Jakob"]
[Result "1-0"]
[ECO "B90"]
[WhiteElo "2030"]
[BlackElo "2264"]
[Annotator "RC"]
[PlyCount "95"]
[EventDate "2024.10.03"]
[EventType "team-swiss"]
[EventRounds "7"]
[EventCountry "GER"]
[SourceTitle "playchess.com"]
[Source "ChessBase"]
[SourceQuality "1"]
[TimeControl "40/5400+30:1800+30"]

1. e4 {[%emt 0:00:06]} c5 {[%emt 0:00:08]} 2. Nf3 {[%emt 0:00:20]} d6 {[%emt 0:00:06]} 3. d4 {[%emt 0:00:06]} cxd4 {[%emt 0:00:04]} 4. Nxd4 {[%emt 0:00:03]} Nf6 {[%emt 0:00:04]} 5. Nc3 {[%emt 0:00:05]} a6 {[%emt 0:00:04]} 6. Qd3 {[%emt 0:00:37]} Nbd7 {[%emt 0:00:37]} 7. Be2 {[%emt 0:00:28]} Nc5 {[%emt 0:05:24]} 8. Qe3 {[%emt 0:01:36]} e5 {[%emt 0:00:34]} 9. Nb3 {[%emt 0:04:07]} Ne6 {[%emt 0:05:58]} 10. O-O {[%emt 0:04:59]} Be7 {[%emt 0:03:38]} 11. a4 {[%emt 0:01:22]} Nf4 {[%emt 0:03:05]} 12. Rd1 {[%emt 0:11:58]} Nxe2+ {[%emt 0:00:33]} 13. Qxe2 {[%emt 0:00:10]} h6 {[%emt 0:09:40]} 14. a5 {[%emt 0:03:27]} Be6 {[%emt 0:00:49]} 15. Nc5 {[%emt 0:03:48]} Bg4 {[%emt 0:04:06]} 16. f3 {[%emt 0:00:07]} Bc8 {[%emt 0:04:17]} 17. Be3 {[%emt 0:01:32]} O-O {[%emt 0:02:30]} 18. N5a4 {[%emt 0:04:21]} Be6 {[%emt 0:02:45]} 19. Nb6 {[%emt 0:00:24]} Rb8 {[%emt 0:00:06]} 20. Rd2 {[%emt 0:00:51]} Ne8 {[%emt 0:08:32]} 21. Rad1 {[%emt 0:07:24]} f5 {[%emt 0:09:42]} 22. exf5 {[%emt 0:06:01]} Rxf5 {[%emt 0:01:16]} 23. Nbd5 {[%emt 0:04:17]} Bf8 {[%emt 0:05:03]} 24. Bb6 {[%emt 0:04:12]} Qd7 {[%emt 0:02:23]} 25. Ne4 {[%emt 0:02:42]} Rc8 {[%emt 0:04:09]} 26. Ne3 {[%emt 0:08:35]} Rf4 {[%emt 0:01:11]} 27. Nc5 {[%emt 0:01:37]} Rxc5 {[%emt 0:07:43]} 28. Bxc5 {[%emt 0:00:09]} Qc6 {[%emt 0:00:29]} 29. Ba3 {[%emt 0:03:10]} Qa4 {[%emt 0:07:02]} 30. Nd5 {[%emt 0:03:00]} Rf7 {[%emt 0:00:30]} 31. Kh1 {[%emt 0:12:23]} Qxa5 {[%emt 0:03:11]} 32. Qe4 {[%emt 0:02:25]} Bxd5 {[%emt 0:04:33]} 33. Qxd5 {[%emt 0:00:52]} b5 {[%emt 0:00:54]} 34. Qc6 {[%emt 0:01:11]} b4 {[%emt 0:02:13]} 35. Qxe8 {[%emt 0:02:38]} bxa3 {[%emt 0:00:02]} 36. bxa3 {[%emt 0:00:07]} Qxa3 {[%emt 0:00:06]} 37. Rxd6 {[%emt 0:01:01]} e4 {[%emt 0:00:07]} 38. Rd7 {[%emt 0:01:58]} Rxd7 {[%emt 0:02:20]} 39. Qxd7 {[%emt 0:00:03]} e3 {[%emt 0:00:31]} 40. Qe6+ {[%emt 0:01:15]} Kh8 {[%emt 0:01:49]} 41. h3 {[%emt 0:33:30]} Be7 {[%emt 0:09:06]} 42. c3 {[%emt 0:00:00]} Qa4 {[%emt 0:06:46]} 43. Rb1 {[%emt 0:00:00]} Qc2 {[%emt 0:02:42]} 44. Rb8+ {[%emt 0:00:00]} Kh7 {[%emt 0:00:11]} 45. Qxe7 {[%emt 0:00:00]} e2 {[%emt 0:00:04]} 46. Re8 {[%emt 0:00:00]} Qc1+ {[%emt 0:01:15]} 47. Kh2 {[%emt 0:00:00]} Qf4+ {[%emt 0:01:00]} 48. g3 {[%emt 0:00:00]} 1-0

[Event "DLM Youth 2024"]
[Site "Tuebingen"]
[Date "2024.10.03"]
[Round "2"]
[White "Kieselbach, Jannik"]
[Black "Malinowsky, Levi"]
[Result "0-1"]
[ECO "B22"]
[WhiteElo "2014"]
[BlackElo "2065"]
[Annotator "NA RC"]
[PlyCount "149"]
[EventDate "2024.10.03"]
[EventType "team-swiss"]
[EventRounds "7"]
[EventCountry "GER"]
[SourceTitle "playchess.com"]
[Source "ChessBase"]
[SourceQuality "1"]
[TimeControl "40/5400+30:1800+30"]

1. e4 {[%emt 0:00:05]} c5 {[%emt 0:00:07]} 2. c3 {[%emt 0:00:46]} d5 {[%emt 0:00:18]} 3. exd5 {[%emt 0:00:10]} Qxd5 {[%emt 0:00:12]} 4. Nf3 {[%emt 0:01:06]} Nc6 {[%emt 0:00:37]} 5. d4 {[%emt 0:00:50]} Bf5 {[%emt 0:00:27]} 6. Na3 {[%emt 0:08:36]} cxd4 {[%emt 0:04:04]} 7. Nxd4 {[%emt 0:13:03]} Nxd4 {[%emt 0:33:19]} 8. Qxd4 {[%emt 0:06:58]} Qxd4 {[%emt 0:08:11]} 9. cxd4 {[%emt 0:00:10]} a6 {[%emt 0:02:25]} 10. Be2 {[%emt 0:06:17]} Nf6 {[%emt 0:00:41]} 11. O-O {[%emt 0:01:05]} e6 {[%emt 0:01:40]} 12. Nc4 {[%emt 0:01:28]} Rd8 {[%emt 0:02:26]} 13. Be3 {[%emt 0:06:21]} Be7 {[%emt 0:00:49]} 14. Rfd1 {[%emt 0:04:48]} O-O {[%emt 0:03:12]} 15. Bf3 {[%emt 0:10:08]} Nd5 {[%emt 0:07:04]} 16. Bd2 {[%emt 0:11:59]} Bc2 {[%emt 0:13:14]} 17. Rdc1 {[%emt 0:08:26]} Ba4 {[%emt 0:00:47]} 18. Ne3 {[%emt 0:09:30]} Bc6 {[%emt 0:02:23]} 19. Nxd5 {[%emt 0:00:57]} Bxd5 {[%emt 0:01:39]} 20. Bxd5 {[%emt 0:00:07]} Rxd5 {[%emt 0:00:14]} 21. Rc7 {[%emt 0:02:24]} Bf6 {[%emt 0:01:33]} 22. Rxb7 {[%emt 0:02:12]} Bxd4 {[%emt 0:00:31]} 23. Bc3 {[%emt 0:00:55]} Rc8 {[%emt 0:02:16]} 24. Bxd4 {[%emt 0:02:26]} Rxd4 {[%emt 0:00:02]} 25. g3 {[%emt 0:00:20]} g5 {[%emt 0:03:26]} 26. Rb6 {[%emt 0:00:39]} Rc2 {[%emt 0:01:05]} 27. Rxa6 {[%emt 0:01:00]} Rdd2 {[%emt 0:00:43]} 28. Rf1 {[%emt 0:00:05]} Rxb2 {[%emt 0:00:07]} 29. Kg2 {[%emt 0:01:07]} Rxa2 {[%emt 0:00:54]} 30. Rxa2 {[%emt 0:00:04]} Rxa2 {[%emt 0:00:30]} 31. h3 {[%emt 0:01:08]} Kg7 {[%emt 0:00:15]} 32. Rb1 {[%emt 0:00:00]} Kg6 {[%emt 0:01:18]} 33. Rb3 {[%emt 0:00:00]} Rc2 {[%emt 0:02:23]} 34. Ra3 {[%emt 0:00:34]} Rc4 {[%emt 0:01:11]} 35. Rb3 {[%emt 0:00:20]} h5 {[%emt 0:00:53]} 36. Ra3 {[%emt 0:00:43]} f5 {[%emt 0:01:30]} 37. Ra8 {[%emt 0:01:03]} h4 {[%emt 0:01:02]} 38. gxh4 {[%emt 0:00:32]} Rxh4 {[%emt 0:00:06]} 39. Ra3 {[%emt 0:00:41]} Rb4 {[%emt 0:00:20]} 40. Rc3 {[%emt 0:00:26]} Kf6 {[%emt 0:00:19]} 41. Ra3 {[%emt 0:01:17]} Rd4 {[%emt 0:02:31]} 42. Kf3 {[%emt 0:02:13]} Ke5 {[%emt 0:01:48]} 43. Ra5+ {[%emt 0:01:21]} Rd5 {[%emt 0:00:42]} 44. Ra3 {[%emt 0:00:10]} Rc5 {[%emt 0:03:20]} 45. Re3+ {[%emt 0:01:39]} Kf6 {[%emt 0:01:55]} 46. Ra3 {[%emt 0:00:37]} Rc4 {[%emt 0:00:12]} 47. Rb3 {[%emt 0:01:08]} Ke5 {[%emt 0:01:10]} 48. Re3+ {[%emt 0:01:50]} Kd5 {[%emt 0:00:27]} 49. Rd3+ {[%emt 0:00:24]} Rd4 {[%emt 0:00:23]} 50. Ra3 {[%emt 0:00:32]} e5 {[%emt 0:01:01]} 51. Ra5+ {[%emt 0:02:50]} Ke6 {[%emt 0:00:51]} 52. Ra6+ {[%emt 0:02:42]} Rd6 {[%emt 0:00:13]} 53. Ra4 {[%emt 0:02:53]} e4+ {[%emt 0:02:07]} 54. Kg2 {[%emt 0:00:07]} Ke5 {[%emt 0:00:19]} 55. Ra5+ {[%emt 0:00:16]} Kf4 {[%emt 0:00:18]} 56. Ra4 {[%emt 0:00:26]} Rd2 {[%emt 0:01:05]} 57. Rb4 {[%emt 0:00:22]} Ra2 {[%emt 0:00:40]} 58. Rc4 {[%emt 0:05:30]} Ra5 {[%emt 0:01:04]} 59. Rb4 {[%emt 0:01:46]} Rc5 {[%emt 0:00:38]} 60. Ra4 {[%emt 0:00:20]} Ke5 {[%emt 0:01:05]} 61. Rb4 {[%emt 0:00:56]} Ra5 {[%emt 0:02:03]} 62. Rc4 {[%emt 0:02:53]} Kd5 {[%emt 0:00:56]} 63. Rb4 {[%emt 0:01:48]} Kc5 {[%emt 0:00:39]} 64. Rb8 {[%emt 0:00:36]} Kd4 {[%emt 0:01:12]} 65. Rd8+ {[%emt 0:04:51]} Rd5 {[%emt 0:00:28]} 66. Ra8 {[%emt 0:00:48]} Kc3 {[%emt 0:01:01]} 67. Ra3+ {[%emt 0:00:36]} Kd2 {[%emt 0:00:27]} 68. Ra2+ {[%emt 0:01:27]} Ke1 {[%emt 0:01:13]} 69. Ra1+ {[%emt 0:01:06]} Ke2 {[%emt 0:01:49]} 70. Ra2+ {[%emt 0:00:37]} Rd2 {[%emt 0:00:09]} 71. Ra5 {[%emt 0:01:20]} f4 {[%emt 0:00:42]} 72. Rxg5 {[%emt 0:00:51]} Ke1 {[%emt 0:03:44]} 73. h4 {[%emt 0:00:06]} Rxf2+ {[%emt 0:00:16]} 74. Kg1 {[%emt 0:00:10]} Re2 {[%emt 0:00:33]} 75. Ra5 {[%emt 0:00:42]} 0-1

[Event "DLM Youth 2024"]
[Site "Tuebingen"]
[Date "2024.10.03"]
[Round "2"]
[White "Sheng, Ming"]
[Black "Baranyai-Molnar, Adam"]
[Result "0-1"]
[ECO "B43"]
[WhiteElo "2007"]
[BlackElo "2179"]
[Annotator "RC"]
[PlyCount "86"]
[EventDate "2024.10.03"]
[EventType "team-swiss"]
[EventRounds "7"]
[EventCountry "GER"]
[SourceTitle "playchess.com"]
[Source "ChessBase"]
[SourceQuality "1"]
[TimeControl "40/5400+30:1800+30"]

1. e4 {[%emt 0:00:01]} c5 {[%emt 0:00:04]} 2. Nf3 {[%emt 0:00:03]} e6 {[%emt 0:00:03]} 3. d4 {[%emt 0:00:07]} cxd4 {[%emt 0:00:04]} 4. Nxd4 {[%emt 0:00:06]} a6 {[%emt 0:00:03]} 5. a3 {[%emt 0:00:14]} Nf6 {[%emt 0:00:58]} 6. Nc3 {[%emt 0:00:08]} Qc7 {[%emt 0:01:13]} 7. Be3 {[%emt 0:00:26]} Be7 {[%emt 0:01:52]} 8. f4 {[%emt 0:00:28]} d6 {[%emt 0:00:24]} 9. Qf3 {[%emt 0:00:55]} Nbd7 {[%emt 0:03:53]} 10. O-O-O {[%emt 0:01:13]} h5 {[%emt 0:03:27]} 11. g3 {[%emt 0:08:06]} b5 {[%emt 0:00:59]} 12. h3 {[%emt 0:02:37]} Bb7 {[%emt 0:00:27]} 13. Bd3 {[%emt 0:00:26]} Nc5 {[%emt 0:02:25]} 14. Kb1 {[%emt 0:03:16]} Rb8 {[%emt 0:13:04]} 15. g4 {[%emt 0:01:02]} Ba8 {[%emt 0:00:27]} 16. g5 {[%emt 0:04:43]} Nfd7 {[%emt 0:00:15]} 17. f5 {[%emt 0:14:38]} Ne5 {[%emt 0:00:34]} 18. Qe2 {[%emt 0:02:38]} b4 {[%emt 0:00:57]} 19. axb4 {[%emt 0:01:14]} Rxb4 {[%emt 0:00:24]} 20. Na2 {[%emt 0:01:29]} Rb8 {[%emt 0:02:10]} 21. fxe6 {[%emt 0:00:47]} fxe6 {[%emt 0:00:25]} 22. Ka1 {[%emt 0:03:59]} Qb7 {[%emt 0:03:44]} 23. b4 {[%emt 0:04:45]} g6 {[%emt 0:07:15]} 24. Rb1 {[%emt 0:01:44]} Nxe4 {[%emt 0:03:15]} 25. Bxa6 {[%emt 0:07:50]} Ng3 {[%emt 0:06:20]} 26. Bxb7 {[%emt 0:01:14]} Nxe2 {[%emt 0:00:04]} 27. Bxa8 {[%emt 0:00:29]} Nxd4 {[%emt 0:00:05]} 28. Bxd4 {[%emt 0:00:17]} Rxa8 {[%emt 0:00:03]} 29. h4 {[%emt 0:01:23]} Rf8 {[%emt 0:02:42]} 30. Bxe5 {[%emt 0:11:31]} dxe5 {[%emt 0:00:04]} 31. c4 {[%emt 0:01:22]} Rf4 {[%emt 0:02:06]} 32. c5 {[%emt 0:00:49]} Bf8 {[%emt 0:00:08]} 33. Rb2 {[%emt 0:02:40]} e4 {[%emt 0:01:59]} 34. Kb1 {[%emt 0:00:17]} Bg7 {[%emt 0:02:22]} 35. Rc2 {[%emt 0:02:16]} e3 {[%emt 0:00:34]} 36. Re2 {[%emt 0:01:59]} Ra3 {[%emt 0:00:58]} 37. Rhe1 {[%emt 0:05:30]} Bd4 {[%emt 0:00:26]} 38. Rd1 {[%emt 0:00:39]} Rf2 {[%emt 0:02:40]} 39. Rxd4 {[%emt 0:02:16]} Rxe2 {[%emt 0:00:05]} 40. Nc1 {[%emt 0:00:15]} Rd2 {[%emt 0:00:57]} 41. Re4 {[%emt 0:31:33]} Ke7 {[%emt 0:30:36]} 42. b5 {[%emt 0:01:45]} Rc3 {[%emt 0:00:24]} 43. c6 {[%emt 0:00:23]} Rd1 {[%emt 0:00:25]} 0-1

[Event "DLM Youth 2024"]
[Site "Tuebingen"]
[Date "2024.10.03"]
[Round "2"]
[White "Li, Yunqi"]
[Black "Bardorz, Jana"]
[Result "0-1"]
[ECO "D36"]
[WhiteElo "2004"]
[BlackElo "2069"]
[Annotator "NA RC"]
[PlyCount "54"]
[EventDate "2024.10.03"]
[EventType "team-swiss"]
[EventRounds "7"]
[EventCountry "GER"]
[SourceTitle "playchess.com"]
[Source "ChessBase"]
[SourceQuality "1"]
[TimeControl "40/5400+30:1800+30"]

1. d4 {[%emt 0:00:06]} d5 {[%emt 0:00:11]} 2. c4 {[%emt 0:00:08]} e6 {[%emt 0:00:07]} 3. Nc3 {[%emt 0:00:09]} Nf6 {[%emt 0:00:11]} 4. cxd5 {[%emt 0:00:21]} exd5 {[%emt 0:00:06]} 5. Bg5 {[%emt 0:00:12]} Be7 {[%emt 0:00:09]} 6. e3 {[%emt 0:00:29]} O-O {[%emt 0:00:43]} 7. Bd3 {[%emt 0:00:11]} h6 {[%emt 0:00:12]} 8. Bh4 {[%emt 0:00:08]} Re8 {[%emt 0:00:15]} 9. Qc2 {[%emt 0:00:15]} c6 {[%emt 0:00:44]} 10. Nf3 {[%emt 0:00:10]} Ne4 {[%emt 0:00:57]} 11. Bxe7 {[%emt 0:00:40]} Qxe7 {[%emt 0:00:15]} 12. O-O {[%emt 0:00:15]} Bf5 {[%emt 0:02:22]} 13. Rab1 {[%emt 0:00:35]} Nd7 {[%emt 0:02:09]} 14. Nd2 {[%emt 0:02:49]} Nxc3 {[%emt 0:09:17]} 15. Qxc3 {[%emt 0:00:51]} Bxd3 {[%emt 0:08:23]} 16. Qxd3 {[%emt 0:00:11]} Nb6 {[%emt 0:02:25]} 17. b4 {[%emt 0:03:01]} a6 {[%emt 0:01:25]} 18. Qb3 {[%emt 0:01:50]} Nc8 {[%emt 0:03:37]} 19. a4 {[%emt 0:06:19]} Nd6 {[%emt 0:00:14]} 20. Rbc1 {[%emt 0:00:47]} h5 {[%emt 0:07:15]} 21. Nb1 {[%emt 0:02:35]} Qg5 {[%emt 0:06:36]} 22. Rc2 {[%emt 0:06:34]} Re6 {[%emt 0:03:31]} 23. Re2 {[%emt 0:06:29]} Nf5 {[%emt 0:06:53]} 24. Nc3 {[%emt 0:04:17]} Rae8 {[%emt 0:02:49]} 25. Nxd5 {[%emt 0:09:03]} Nxd4 {[%emt 0:09:35]} 26. exd4 {[%emt 0:01:08]} Rxe2 {[%emt 0:00:28]} 27. Nc3 {[%emt 0:09:27]} Rxf2 {[%emt 0:05:51]} 0-1

[Event "DLM Youth 2024"]
[Site "Tuebingen"]
[Date "2024.10.03"]
[Round "2"]
[White "Mester, Philipp"]
[Black "Mueller, Maximilian"]
[Result "1/2-1/2"]
[ECO "E46"]
[WhiteElo "1996"]
[BlackElo "2030"]
[Annotator "NA RC"]
[PlyCount "79"]
[EventDate "2024.10.03"]
[EventType "team-swiss"]
[EventRounds "7"]
[EventCountry "GER"]
[SourceTitle "playchess.com"]
[Source "ChessBase"]
[SourceQuality "1"]
[TimeControl "40/5400+30:1800+30"]

1. d4 {[%emt 0:00:04]} Nf6 {[%emt 0:00:05]} 2. c4 {[%emt 0:00:06]} e6 {[%emt 0:00:03]} 3. Nc3 {[%emt 0:00:07]} Bb4 {[%emt 0:00:04]} 4. e3 {[%emt 0:00:10]} O-O {[%emt 0:00:05]} 5. Bd2 {[%emt 0:00:05]} c5 {[%emt 0:00:03]} 6. a3 {[%emt 0:00:44]} Bxc3 {[%emt 0:00:20]} 7. Bxc3 {[%emt 0:00:08]} Ne4 {[%emt 0:00:03]} 8. Rc1 {[%emt 0:01:47]} b6 {[%emt 0:01:39]} 9. d5 {[%emt 0:18:35]} Nxc3 {[%emt 0:02:33]} 10. Rxc3 {[%emt 0:00:18]} Bb7 {[%emt 0:04:53]} 11. g3 {[%emt 0:11:02]} exd5 {[%emt 0:01:37]} 12. Bg2 {[%emt 0:01:38]} Qf6 {[%emt 0:04:09]} 13. Ne2 {[%emt 0:02:26]} Nc6 {[%emt 0:05:07]} 14. Bxd5 {[%emt 0:00:53]} Rab8 {[%emt 0:02:20]} 15. O-O {[%emt 0:01:53]} d6 {[%emt 0:05:43]} 16. Qd2 {[%emt 0:01:34]} Rfd8 {[%emt 0:01:15]} 17. Rd1 {[%emt 0:01:40]} Ne5 {[%emt 0:02:23]} 18. f4 {[%emt 0:03:01]} Nf3+ {[%emt 0:02:03]} 19. Bxf3 {[%emt 0:00:22]} Bxf3 {[%emt 0:00:04]} 20. Rd3 {[%emt 0:11:39]} d5 {[%emt 0:00:06]} 21. cxd5 {[%emt 0:00:39]} Be4 {[%emt 0:00:28]} 22. Nc3 {[%emt 0:00:38]} Bxd3 {[%emt 0:00:06]} 23. Qxd3 {[%emt 0:00:03]} b5 {[%emt 0:01:27]} 24. e4 {[%emt 0:01:12]} b4 {[%emt 0:00:13]} 25. Na4 {[%emt 0:06:53]} Rbc8 {[%emt 0:09:35]} 26. Qc4 {[%emt 0:01:20]} g5 {[%emt 0:00:26]} 27. e5 {[%emt 0:09:40]} Qf5 {[%emt 0:01:01]} 28. Rd3 {[%emt 0:01:05]} bxa3 {[%emt 0:00:22]} 29. Rxa3 {[%emt 0:01:23]} Qb1+ {[%emt 0:01:15]} 30. Kg2 {[%emt 0:00:21]} Rb8 {[%emt 0:00:05]} 31. Qd3 {[%emt 0:01:07]} Qe1 {[%emt 0:02:13]} 32. d6 {[%emt 0:02:16]} Rb4 {[%emt 0:03:34]} 33. Ra1 {[%emt 0:14:11]} Qxa1 {[%emt 0:02:31]} 34. Qf5 {[%emt 0:00:29]} Rxb2+ {[%emt 0:04:39]} 35. Nxb2 {[%emt 0:01:23]} Qxb2+ {[%emt 0:00:07]} 36. Kh3 {[%emt 0:00:31]} h6 {[%emt 0:02:20]} 37. e6 {[%emt 0:05:18]} fxe6 {[%emt 0:09:02]} 38. Qxe6+ {[%emt 0:00:10]} Kg7 {[%emt 0:00:06]} 39. Qe7+ {[%emt 0:02:26]} Kg6 {[%emt 0:00:08]} 40. Qe4+ {[%emt 0:00:58]} 1/2-1/2

[Event "DLM Youth 2024"]
[Site "Tuebingen"]
[Date "2024.10.03"]
[Round "2"]
[White "Kauth, Lukas"]
[Black "Semling, Johannes"]
[Result "0-1"]
[ECO "B56"]
[WhiteElo "1988"]
[BlackElo "2206"]
[Annotator "RC"]
[PlyCount "96"]
[EventDate "2024.10.03"]
[EventType "team-swiss"]
[EventRounds "7"]
[EventCountry "GER"]
[SourceTitle "playchess.com"]
[Source "ChessBase"]
[SourceQuality "1"]
[TimeControl "40/5400+30:1800+30"]

1. e4 {[%emt 0:02:04]} c5 {[%emt 0:00:26]} 2. Nc3 {[%emt 0:00:49]} Nc6 {[%emt 0:01:35]} 3. Nf3 {[%emt 0:01:23]} d6 {[%emt 0:01:30]} 4. d4 {[%emt 0:00:36]} cxd4 {[%emt 0:00:35]} 5. Nxd4 {[%emt 0:00:13]} Nf6 {[%emt 0:00:07]} 6. f3 {[%emt 0:00:51]} e5 {[%emt 0:02:19]} 7. Nb3 {[%emt 0:00:12]} Be6 {[%emt 0:00:21]} 8. Nd5 {[%emt 0:03:37]} Be7 {[%emt 0:00:50]} 9. Be3 {[%emt 0:01:13]} O-O {[%emt 0:01:04]} 10. c4 {[%emt 0:01:48]} Qd7 {[%emt 0:07:37]} 11. Bd3 {[%emt 0:04:51]} Rfc8 {[%emt 0:03:06]} 12. O-O {[%emt 0:01:16]} Bd8 {[%emt 0:03:31]} 13. Qd2 {[%emt 0:04:25]} Bxd5 {[%emt 0:11:42]} 14. exd5 {[%emt 0:02:49]} Ne7 {[%emt 0:00:18]} 15. Nc1 {[%emt 0:03:00]} b5 {[%emt 0:04:15]} 16. b3 {[%emt 0:03:40]} Bb6 {[%emt 0:01:51]} 17. Ne2 {[%emt 0:07:29]} Qd8 {[%emt 0:03:34]} 18. a4 {[%emt 0:13:55]} bxc4 {[%emt 0:04:27]} 19. bxc4 {[%emt 0:00:25]} Nd7 {[%emt 0:06:30]} 20. Ng3 {[%emt 0:17:13]} Rab8 {[%emt 0:11:54]} 21. Rab1 {[%emt 0:08:36]} Qc7 {[%emt 0:03:15]} 22. Ne4 {[%emt 0:01:37]} f5 {[%emt 0:02:58]} 23. Nc3 {[%emt 0:01:29]} Bxe3+ {[%emt 0:02:57]} 24. Qxe3 {[%emt 0:00:18]} Qc5 {[%emt 0:01:45]} 25. Kf2 {[%emt 0:05:26]} a6 {[%emt 0:01:47]} 26. Qxc5 {[%emt 0:01:52]} Nxc5 {[%emt 0:00:09]} 27. Ke3 {[%emt 0:00:15]} Nb3 {[%emt 0:03:36]} 28. f4 {[%emt 0:04:31]} e4 {[%emt 0:01:33]} 29. Be2 {[%emt 0:01:18]} Rb4 {[%emt 0:01:29]} 30. Rb2 {[%emt 0:01:40]} Rcb8 {[%emt 0:03:30]} 31. Rfb1 {[%emt 0:00:54]} R4b6 {[%emt 0:04:25]} 32. a5 {[%emt 0:01:41]} R6b7 {[%emt 0:00:35]} 33. c5 {[%emt 0:01:23]} Nxc5 {[%emt 0:02:06]} 34. Rxb7 {[%emt 0:00:11]} Rxb7 {[%emt 0:00:21]} 35. Rxb7 {[%emt 0:00:12]} Nxb7 {[%emt 0:00:04]} 36. Bxa6 {[%emt 0:00:12]} Nxa5 {[%emt 0:00:21]} 37. g3 {[%emt 0:00:34]} Nb3 {[%emt 0:01:16]} 38. Bc4 {[%emt 0:00:39]} Nc5 {[%emt 0:00:54]} 39. Nb5 {[%emt 0:03:20]} Nc8 {[%emt 0:01:35]} 40. Kd4 {[%emt 0:00:35]} Nd7 {[%emt 0:01:46]} 41. Nc3 {[%emt 0:31:43]} Kf7 {[%emt 0:30:47]} 42. g4 {[%emt 0:00:40]} g6 {[%emt 0:00:28]} 43. g5 {[%emt 0:00:08]} Ke7 {[%emt 0:00:38]} 44. Bb5 {[%emt 0:00:42]} Nc5 {[%emt 0:00:11]} 45. Na4 {[%emt 0:00:36]} Na7 {[%emt 0:01:02]} 46. Nxc5 {[%emt 0:00:26]} Nxb5+ {[%emt 0:00:08]} 47. Kc4 {[%emt 0:00:08]} dxc5 {[%emt 0:00:04]} 48. Kxb5 {[%emt 0:00:07]} e3 {[%emt 0:00:24]} 0-1